fUST/lending_fUST_20260121
["ID","MTS","AMOUNT","RATE_DAILY","PERIOD"]
[402849801,1768933227956,307.7,0.00027397,120]
[402849802,1768933232469,500.0,0.00027397,120]
[402849803,1768933232963,500.0,0.00027397,120]
[402849804,1768933233203,358.07,0.00027397,120]
[402849805,1768933237714,500.0,0.00027397,120]
[402849806,1768933246670,500.0,0.00027397,120]
[402849807,1768933246934,500.0,0.00027397,120]
[402849808,1768933247159,425.92,0.00027397,120]
[402849809,1768933251485,500.0,0.00027397,120]
[402849810,1768933254517,500.0,0.00027397,120]
[402849811,1768933254737,500.0,0.00027397,120]
[402849812,1768933254876,500.0,0.00027397,120]
[402849813,1768933255227,500.0,0.00027397,120]
[402849814,1768933255473,319.02,0.00027397,120]
[402849815,1768933259993,500.0,0.00027397,120]
[402849816,1768933260298,500.0,0.00027397,120]
[402849817,1768933260518,600.03,0.00027397,120]
[402849818,1768933270480,500.0,0.00027397,120]
[402849819,1768933274042,500.0,0.00027397,120]
[402849820,1768933275982,500.0,0.00027397,120]
[402849821,1768933278440,500.0,0.00027397,120]
[402849822,1768933280234,500.0,0.00027397,120]
[402849823,1768933280474,500.0,0.00027397,120]
[402849824,1768933280712,280.45,0.00027397,120]
[402849825,1768933281906,500.0,0.00027397,120]
[402849826,1768933290669,500.0,0.00027397,120]
[402849827,1768933292571,500.0,0.00027397,120]
[402849828,1768933292801,208.25,0.00027397,120]
[402849831,1768933306375,500.0,0.00027397,120]
[402849832,1768933306771,500.0,0.00027397,120]
[402849833,1768933308558,500.0,0.00027397,120]
[402849834,1768933310274,500.0,0.00027397,120]
[402849835,1768933310767,500.0,0.00027397,120]
[402849836,1768933312161,500.0,0.00027397,120]
[402849837,1768933312427,184.33,0.00027397,120]
[402849838,1768933314319,500.0,0.00027397,120]
[402849839,1768933314559,172.75,0.00027397,120]
[402849840,1768933316568,500.0,0.00027397,120]
[402849841,1768933332625,500.0,0.00027397,120]
[402849842,1768933342707,500.0,0.00027397,120]
[402849843,1768933343225,500.0,0.00027397,120]
[402849844,1768933355070,621.02,0.00027397,120]
[402849847,1768933365469,500.0,0.00027397,120]
[402849848,1768933367316,500.0,0.00027397,120]
[402849849,1768933374293,500.0,0.00027397,120]
[402849851,1768933378925,500.0,0.00027397,120]
[402849852,1768933379468,500.0,0.00027397,120]
[402849853,1768933391723,500.0,0.00027397,120]
[402849854,1768933401903,500.0,0.00027397,120]
[402849855,1768933403894,500.0,0.00027397,120]
[402849856,1768933405734,500.0,0.00027397,120]
[402849857,1768933406302,500.0,0.00027397,120]
[402849858,1768933407518,500.0,0.00027397,120]
[402849859,1768933407761,227.0,0.00027397,120]
[402849860,1768933414027,506.77,0.00027397,120]
[402849863,1768933417594,500.0,0.00027397,120]
[402849864,1768933419330,500.0,0.00027397,120]
[402849865,1768933419570,240.24,0.00027397,120]
[402849866,1768933421804,500.0,0.00027397,120]
[402849867,1768933423573,500.0,0.00027397,120]
[402849868,1768933423816,253.11,0.00027397,120]
[402849871,1768933443568,500.0,0.00027397,120]
[402849872,1768933443995,235.99,0.00027397,120]
[402849873,1768933444626,500.0,0.00027397,120]
[402849874,1768933447134,500.0,0.00027397,120]
[402849875,1768933447391,166.96,0.00027397,120]
[402849876,1768933463812,521.81059533,0.00027397,120]
[402849877,1768933468087,355.84576116,0.00027397,120]
[402849878,1768933470047,500.0,0.00027397,120]
[402849879,1768933472351,500.0,0.00027397,120]
[402849880,1768933479268,500.0,0.00027397,120]
[402849881,1768933481692,500.0,0.00027397,120]
[402849882,1768933483675,500.0,0.00027397,120]
[402849883,1768933485332,500.0,0.00027397,120]
[402849884,1768933485570,442.42,0.00027397,120]
[402849885,1768933487441,500.0,0.00027397,120]
[402849886,1768933503237,500.0,0.00027397,120]
[402849887,1768933503494,500.0,0.00027397,120]
[402849888,1768933504808,580.9568791,0.00027397,120]
[402849889,1768933505276,500.0,0.00027397,120]
[402849890,1768933505519,500.0,0.00027397,120]
[402849891,1768933505753,500.0,0.00027397,120]
[402849892,1768933505997,500.0,0.00027397,120]
[402849893,1768933506239,329.62,0.00027397,120]
[402849894,1768933510930,500.0,0.00027397,120]
[402849895,1768933511174,500.0,0.00027397,120]
[402849896,1768933513078,500.0,0.00027397,120]
[402849897,1768933513391,581.92,0.00027397,120]
[402849898,1768933521742,500.0,0.00027397,120]
[402849899,1768933521980,257.81,0.00027397,120]
[402849900,1768933526022,500.0,0.00027397,120]
[402849901,1768933526338,500.0,0.00027397,120]
[402849902,1768933526682,500.0,0.00027397,120]
[402849903,1768933533277,500.0,0.00027397,120]
[402849904,1768933534801,500.0,0.00027397,120]
[402849905,1768933535781,626.64,0.00027397,120]
[402849906,1768933542835,500.0,0.00027397,120]
[402849907,1768933543103,238.19,0.00027397,120]
[402849908,1768933543274,500.0,0.00027397,120]
[402849910,1768933553962,500.0,0.00027397,120]
[402849911,1768933566926,500.0,0.00027397,120]
[402849912,1768933567205,500.0,0.00027397,120]
[402849913,1768933567443,294.49,0.00027397,120]
[402849914,1768933571614,500.0,0.00027397,120]
[402849915,1768933576874,500.0,0.00027397,120]
[402849916,1768933577119,320.17,0.00027397,120]
[402849917,1768933584872,620.62,0.00027397,120]
[402849918,1768933585788,500.0,0.00027397,120]
[402849919,1768933586799,500.0,0.00027397,120]
[402849920,1768933587037,219.8,0.00027397,120]
[402849921,1768933591017,500.0,0.00027397,120]
[402849922,1768933598447,500.0,0.00027397,120]
[402849923,1768933603581,500.0,0.00027397,120]
[402849994,1768933711243,500.0,0.00027397,120]
[402849995,1768933711464,500.0,0.00027397,120]
[402849996,1768933711732,500.0,0.00027397,120]
[402850247,1768933838003,-2522.19948088,0.00015778,10]
[402850248,1768933838017,-2477.80051912,0.00015778,10]
[402850249,1768933838026,-637.97299785,0.00015837,2]
[402850250,1768933838036,-1020.86219199,0.00015937,2]
[402850251,1768933838046,-161.0,0.00016137,3]
[402850252,1768933838055,-586.20161001,0.00016631,2]
[402850253,1768933838064,-2342.46163362,0.00016631,2]
[402850254,1768933838073,-159.62665952,0.00017409,2]
[402850255,1768933838082,-156.8854744,0.00017409,2]
[402850256,1768933838092,-157.24845598,0.00017409,2]
[402850257,1768933838104,-162.489025,0.00017584,2]
[402850258,1768933838113,-177.0,0.00017807,2]
[402850259,1768933838122,-1020.86219193,0.00017907,2]
[402850260,1768933838132,-9722.56965846,0.00017947,2]
[402850261,1768933838146,-897.89,0.00017947,2]
[402850262,1768933838161,-3013.32813986,0.00017947,2]
[402850263,1768933838172,-268.61921822,0.00017947,2]
[402850264,1768933838185,-11549.20616657,0.00017947,2]
[402850266,1768933838196,-281.04,0.00017947,2]
[402850345,1768933840286,-728.12039936,0.00017947,2]
[402850346,1768933840297,-743.36268876,0.00017947,2]
[402850347,1768933840340,-1056.2537685,0.00017947,2]
[402850348,1768933840352,-2919.67419097,0.00017947,2]
[402850349,1768933840363,-18819.9357693,0.00017947,2]
[402850350,1768933840374,-175.961228,0.00018271,2]
[402850351,1768933840383,-506.3293823,0.00018501,2]
[402850352,1768933840394,-228.83974388,0.00018501,2]
[402850354,1768933840404,-307.79346763,0.00018501,2]
[402850355,1768933840413,-500.0,0.00018501,2]
[402850356,1768933840423,-500.0,0.00018501,2]
[402850357,1768933840432,-394.0529296,0.00018501,2]
[402850358,1768933840442,-242.0,0.00018501,2]
[402850359,1768933840451,-551.60940982,0.00018501,2]
[402850360,1768933840460,-500.0,0.00018501,2]
[402850361,1768933840469,-500.0,0.00018501,2]
[402850362,1768933840479,-500.0,0.00018501,2]
[402850364,1768933840488,-500.0,0.00018501,2]
[402850366,1768933840499,-500.0,0.00018501,2]
[402850368,1768933840508,-489.79255455,0.00018501,2]
[402850370,1768933840518,-160.18782071,0.00018501,2]
[402850372,1768933840527,-1041.66666667,0.00018842,2]
[402850375,1768933840537,-303.10001603,0.000189,2]
[402850378,1768933840547,-300.73,0.00018968,2]
[402850381,1768933840556,-151.0,0.00018968,2]
[402850383,1768933840566,-445.202766,0.00018968,2]
[402850386,1768933840575,-250.0,0.00018968,2]
[402850389,1768933840584,-151.0,0.00018968,2]
[402850392,1768933840594,-151.0,0.00018968,2]
[402850394,1768933840603,-198.0,0.00018968,2]
[402850395,1768933840613,-151.0,0.00018968,2]
[402850396,1768933840622,-151.0,0.00018968,2]
[402850397,1768933840631,-250.0,0.00018968,2]
[402850398,1768933840640,-250.0,0.00018968,2]
[402850399,1768933840649,-500.0,0.00018968,2]
[402850400,1768933840658,-250.0,0.00018968,2]
[402850401,1768933840668,-300.91570277,0.00018968,2]
[402850402,1768933840677,-537.6845,0.00018968,2]
[402850403,1768933840687,-635.5119666,0.0001899,2]
[402850404,1768933840696,-6424.5179367,0.0001899,2]
[402850405,1768933840705,-622.8939449,0.0001899,2]
[402850406,1768933840714,-169.697,0.0001899,2]
[402850407,1768933840724,-11990.53480184,0.0001899,2]
[402850408,1768933840736,-1061.69153269,0.0001899,2]
[402850431,1768933843203,-193.005908,0.00017959,2]
[402850432,1768933843212,-1643.1686048,0.000188,10]
[402850433,1768933843224,-3356.8313952,0.000188,10]
[402850434,1768933843233,-335.13119477,0.0001899,2]
[402850435,1768933843245,-418.93857618,0.0001899,2]
[402850436,1768933843256,-843.72021,0.0001899,2]
[402850444,1768933845992,-12018.22101642,0.0001899,2]
[402850445,1768933846002,-1020.281088,0.0001899,2]
[402850446,1768933846012,-5076.1103941,0.0001899,2]
[402850447,1768933846022,-500.0,0.0001899,2]
[402850448,1768933846033,-5000.0,0.00019,2]
[402850449,1768933846043,-17980.14995828,0.00019,2]
[402850450,1768933846053,-2603.49,0.00019,2]
[402850451,1768933846062,-303.10001603,0.00019089,2]
[402850452,1768933846071,-1950.0333168,0.00019205,5]
[402850453,1768933846080,-500.0,0.00019264,2]
[402850454,1768933846092,-303.10001603,0.00019278,2]
[402850455,1768933846103,-755.8983436,0.00019339,2]
[402850456,1768933846114,-2562.98471175,0.00019407,7]
[402850457,1768933846126,-2612.26112233,0.00019407,7]
[402850458,1768933846137,-303.10001603,0.00019467,2]
[402850459,1768933846149,-449.38819173,0.00019516,2]
[402850460,1768933846159,-494.6078106,0.00019516,2]
[402850461,1768933846168,-557.5788265,0.00019516,2]
[402850462,1768933846180,-162.380719,0.00019587,2]
[402850463,1768933846190,-168.3888056,0.00019587,2]
[402850464,1768933846200,-174.61919141,0.00019587,2]
[402850465,1768933846209,-181.08010149,0.00019587,2]
[402850466,1768933846219,-187.78006525,0.00019587,2]
[402850467,1768933846228,-194.72792766,0.00019587,2]
[402850468,1768933846237,-201.93286099,0.00019587,2]
[402850469,1768933846246,-209.40437684,0.00019587,2]
[402850470,1768933846256,-217.15233878,0.00019587,2]
[402850471,1768933846266,-225.18697532,0.00019587,2]
[402850472,1768933846276,-233.51889341,0.00019587,2]
[402850473,1768933846285,-242.15909246,0.00019587,2]
[402850474,1768933846295,-251.11897888,0.00019587,2]
[402850475,1768933846305,-260.4103811,0.00019587,2]
[402850476,1768933846315,-270.0455652,0.00019587,2]
[402850477,1768933846324,-280.03725112,0.00019587,2]
[402850478,1768933846333,-290.39862941,0.00019587,2]
[402850479,1768933846342,-301.1433787,0.00019587,2]
[402850480,1768933846353,-500.0,0.00019589,2]
[402850481,1768933846362,-500.0,0.00019589,2]
[402850482,1768933846371,-500.0,0.00019589,2]
[402850483,1768933846381,-847.0,0.00019589,2]
[402850484,1768933846391,-169.2,0.00019598,2]
[402850485,1768933846401,-56007.54688631,0.00019599,2]
[402850486,1768933846413,-12419.9523964,0.00019599,2]
[402850526,1768935032085,-424.98544263,0.000152,2]
[402850528,1768935032096,-514.69717787,0.000152,2]
[402850530,1768935032108,-843.43653506,0.000152,2]
[402850532,1768935032119,-962.90483742,0.000152,2]
[402850535,1768935032131,-1249.50691396,0.000152,2]
[402850735,1768935038263,-1004.46909306,0.000152,2]
[402850736,1768935038275,-177.0,0.00017434,2]
[402850737,1768935038286,-300.0,0.0001758,2]
[402850738,1768935038296,-348.0,0.00017581,2]
[402850739,1768935038307,-270.2703129,0.00017581,2]
[402850740,1768935038318,-348.0,0.00017581,2]
[402850741,1768935038327,-348.0,0.00017581,2]
[402850742,1768935038338,-1090.35886136,0.0001774,2]
[402850743,1768935038348,-167.3359241,0.0001774,2]
[402850744,1768935038360,-1273.6685903,0.0001774,2]
[402850788,1768935043411,-428.52274918,0.00017562,2]
[402850798,1768935046242,-1940.00070275,0.00017562,2]
[402850803,1768935046299,-710.58945915,0.00017562,2]
[402850806,1768935046538,-1920.88708892,0.00017562,2]
[402850807,1768935046549,-2920.43093103,0.0001774,2]
[402850808,1768935046559,-1041.66666667,0.00018227,2]
[402850809,1768935046569,-500.0,0.00018294,2]
[402850810,1768935046578,-500.0,0.00018294,2]
[402850811,1768935046587,-500.0,0.00018294,2]
[402850812,1768935046598,-500.0,0.00018294,2]
[402850813,1768935046607,-500.0,0.00018294,2]
[402850814,1768935046618,-500.0,0.00018294,2]
[402850815,1768935046628,-186.79008236,0.00018294,2]
[402850816,1768935046637,-500.0,0.00018294,2]
[402850817,1768935046646,-500.0,0.00018294,2]
[402850818,1768935046655,-500.0,0.00018294,2]
[402850819,1768935046665,-500.0,0.00018294,2]
[402850820,1768935046675,-620.0,0.00018294,2]
[402850821,1768935046684,-500.0,0.00018294,2]
[402850822,1768935046695,-500.0,0.00018294,2]
[402850823,1768935046705,-175.65834642,0.00018294,2]
[402850824,1768935046714,-617.95851091,0.00018294,2]
[402850825,1768935046724,-2047.80127114,0.00018295,2]
[402850826,1768935046851,-3922.28126699,0.00018295,2]
[402850827,1768935340673,263.23353202,0.00023609,120]
[402850834,1768935755088,151.0,0.00027397,120]
[402850907,1768936238418,-5000.0,9.679e-05,10]
[402850909,1768936238428,-560.0,9.976e-05,2]
[402850911,1768936238438,-163.81,0.00010305,2]
[402850913,1768936238447,-187.21,0.00010686,2]
[402850915,1768936238457,-210.61,0.00011068,2]
[402850917,1768936238467,-234.01,0.0001145,2]
[402850919,1768936238476,-177.0,0.00011876,2]
[402850921,1768936238486,-1616.62830796,0.0001317,2]
[402850923,1768936238496,-300.0,0.00013268,2]
[402850925,1768936238506,-300.0,0.00013268,2]
[402850927,1768936238515,-300.0,0.00013268,2]
[402850929,1768936238525,-500.0,0.00013269,2]
[402850932,1768936238534,-500.0,0.00013269,2]
[402850934,1768936238544,-235.32872343,0.00013269,2]
[402850936,1768936238554,-380.0,0.00013269,2]
[402850938,1768936238563,-510.33961212,0.00013269,2]
[402850940,1768936238573,-412.27761503,0.00013269,2]
[402850942,1768936238583,-14889.44362451,0.0001327,2]
[402850945,1768936238594,-7867.23047152,0.0001327,2]
[402850947,1768936238605,-1940.29941832,0.0001327,2]
[402850949,1768936238616,-752.25,0.0001327,2]
[402851099,1768936240601,-371.17666536,0.0001327,2]
[402851100,1768936240612,-22345.59631286,0.0001327,2]
[402851101,1768936240623,-500.0,0.00013273,2]
[402851102,1768936240632,-500.0,0.00013273,2]
[402851103,1768936240641,-500.0,0.00013273,2]
[402851104,1768936240651,-500.0,0.00013273,2]
[402851105,1768936240660,-500.0,0.00013273,2]
[402851106,1768936240669,-500.0,0.00013273,2]
[402851107,1768936240678,-497.36191645,0.00013273,2]
[402851108,1768936240688,-500.0,0.00013273,2]
[402851109,1768936240697,-500.0,0.00013273,2]
[402851111,1768936240706,-159.65287791,0.00013273,2]
[402851112,1768936240715,-500.0,0.00013273,2]
[402851114,1768936240728,-500.0,0.00013273,2]
[402851116,1768936240738,-500.0,0.00013273,2]
[402851118,1768936240747,-500.0,0.00013273,2]
[402851120,1768936240757,-500.0,0.00013273,2]
[402851121,1768936240767,-500.0,0.00013273,2]
[402851122,1768936240778,-300.0,0.00013673,2]
[402851123,1768936240787,-5798.80248155,0.0001369,2]
[402851124,1768936240796,-1000.0,0.00013699,2]
[402851125,1768936240806,-716.560947,0.00013699,2]
[402851126,1768936240815,-500.0,0.00013699,2]
[402851127,1768936240825,-500.0,0.00013699,2]
[402851128,1768936240834,-500.0,0.00013699,2]
[402851129,1768936240843,-500.0,0.00013699,2]
[402851130,1768936240852,-500.0,0.00013699,2]
[402851131,1768936240861,-500.0,0.00013699,2]
[402851133,1768936240870,-502.52054925,0.00013699,2]
[402851135,1768936240879,-422.94168027,0.00013699,2]
[402851136,1768936240888,-500.58450182,0.00013699,2]
[402851137,1768936240898,-394.87591016,0.00013699,2]
[402851138,1768936240907,-500.0,0.00013699,2]
[402851139,1768936240916,-500.0,0.00013699,2]
[402851140,1768936240926,-500.0,0.00013699,2]
[402851142,1768936240936,-500.0,0.00013699,2]
[402851144,1768936240945,-501.38677678,0.00013699,2]
[402851146,1768936240955,-503.42560255,0.00013699,2]
[402851147,1768936240964,-502.1659275,0.00013699,2]
[402851149,1768936240974,-500.0,0.00013699,2]
[402851151,1768936240983,-500.0,0.00013699,2]
[402851153,1768936240992,-272.30989002,0.00013699,2]
[402851155,1768936241001,-1000.0,0.00013821,2]
[402851156,1768936241015,-1000.0,0.00013821,2]
[402851158,1768936241024,-1000.0,0.00013821,2]
[402851160,1768936241034,-1015.82547117,0.00013821,2]
[402851161,1768936241043,-505.48440654,0.00013821,2]
[402851163,1768936241052,-1000.0,0.00013821,2]
[402851165,1768936241061,-1000.0,0.00013821,2]
[402851167,1768936241070,-1000.0,0.00013821,2]
[402851168,1768936241079,-1000.93366005,0.00013821,2]
[402851169,1768936241089,-1000.0,0.00013821,2]
[402851170,1768936241098,-1001.43632818,0.00013821,2]
[402851171,1768936241107,-1009.83681907,0.00013821,2]
[402851172,1768936241116,-1000.0,0.00013821,2]
[402851173,1768936241127,-1008.18367397,0.00013821,2]
[402851174,1768936241136,-204.0,0.00013877,2]
[402851175,1768936241146,-600.0,0.00014221,2]
[402851176,1768936241156,-1000.0,0.00014247,2]
[402851177,1768936241165,-501.58762465,0.00014247,2]
[402851178,1768936241174,-628.08037193,0.00014247,2]
[402851179,1768936241183,-501.56070546,0.00014247,2]
[402851180,1768936241193,-1000.0,0.00014247,2]
[402851181,1768936241202,-192.93732994,0.00014247,2]
[402851182,1768936241212,-1001.06326511,0.00014247,2]
[402851183,1768936241221,-1003.26299167,0.00014247,2]
[402851184,1768936241231,-238.49548556,0.00014247,2]
[402851185,1768936241240,-502.93976789,0.00014247,2]
[402851186,1768936241251,-1000.0,0.00014247,2]
[402851187,1768936241261,-1004.97142812,0.00014247,2]
[402851188,1768936241270,-1000.0,0.00014247,2]
[402851189,1768936241282,-151.0,0.00014247,2]
[402851190,1768936241293,-183.970308,0.00014247,2]
[402851191,1768936241303,-1500.0,0.00014368,2]
[402851192,1768936241312,-1500.0,0.00014368,2]
[402851193,1768936241321,-158.68527043,0.00014795,2]
[402851194,1768936241331,-1041.66666667,0.0001486,2]
[402851195,1768936241340,-2000.0,0.00014916,2]
[402851196,1768936241350,-2000.0,0.00014916,2]
[402851197,1768936241359,-232.085575,0.00015068,2]
[402851198,1768936241368,-1111.32229929,0.00015209,2]
[402851199,1768936241377,-4445.28919715,0.00015209,2]
[402851200,1768936241386,-151.0,0.00015464,2]
[402851201,1768936241396,-2500.0,0.00015464,2]
[402851202,1768936241404,-1500.0,0.00015464,2]
[402851203,1768936241414,-1616.62830794,0.00015536,2]
[402851204,1768936241423,-231.0,0.00015877,2]
[402851205,1768936241432,-151.0,0.00016161,2]
[402851206,1768936241441,-151.0,0.00016161,2]
[402851207,1768936241450,-151.0,0.00016161,2]
[402851208,1768936241459,-151.0,0.00016161,2]
[402851209,1768936241469,-152.0,0.00017125,2]
[402851210,1768936241478,-152.0,0.00017125,2]
[402851211,1768936241487,-152.0,0.00017125,2]
[402851212,1768936241496,-152.0,0.00017125,2]
[402851213,1768936241505,-152.0,0.00017125,2]
[402851214,1768936241514,-153.30769887,0.00017125,2]
[402851215,1768936241523,-151.0,0.00017125,2]
[402851216,1768936241532,-258.0,0.00017877,2]
[402851217,1768936241541,-1616.62830794,0.00017902,2]
[402851218,1768936241551,-5000.0,0.00018,2]
[402851219,1768936241560,-184.9581126,0.00018027,2]
[402851220,1768936241570,-388.792965,0.00018027,2]
[402851221,1768936241579,-153.0,0.00018027,2]
[402851222,1768936241588,-602.8966481,0.00018027,2]
[402851223,1768936241598,-602.8966481,0.00018027,2]
[402851224,1768936241607,-153.0,0.00018027,2]
[402851225,1768936241616,-305.2501772,0.00018027,2]
[402851226,1768936241626,-602.8966481,0.00018027,2]
[402851227,1768936241635,-153.0,0.00018027,2]
[402851228,1768936241647,-305.2501772,0.00018027,2]
[402851229,1768936241656,-602.8966481,0.00018027,2]
[402851230,1768936241665,-153.0,0.00018027,2]
[402851231,1768936241675,-305.2501772,0.00018027,2]
[402851232,1768936241684,-153.0,0.00018027,2]
[402851233,1768936241694,-650.0436638,0.00018027,2]
[402851234,1768936241704,-305.2501772,0.00018027,2]
[402851235,1768936241713,-305.2501772,0.00018027,2]
[402851236,1768936241723,-305.2501772,0.00018027,2]
[402851237,1768936241736,-153.0,0.00018027,2]
[402851238,1768936241746,-194.3662609,0.00018078,2]
[402851239,1768936241756,-602.8966481,0.00018078,2]
[402851240,1768936241765,-153.0,0.00018078,2]
[402851241,1768936241777,-185.0782816,0.0001811,2]
[402851242,1768936241786,-52898.0,0.000182,2]
[402851243,1768936241796,-151.0,0.000182,2]
[402851244,1768936241806,-50000.0,0.000186,2]
[402851245,1768936241816,-151.0,0.000186,2]
[402851246,1768936241825,-151.0,0.00018661,2]
[402851247,1768936241834,-151.0,0.00018661,2]
[402851248,1768936241843,-151.0,0.00018661,2]
[402851249,1768936241852,-151.0,0.00018661,2]
[402851250,1768936241861,-151.0,0.00018661,2]
[402851251,1768936241871,-537.6845,0.00018691,2]
[402851252,1768936241880,-445.202766,0.00018691,2]
[402851253,1768936241889,-2150.738,0.00018691,2]
[402851254,1768936241898,-151.0,0.000187,2]
[402851255,1768936241909,-151.0,0.000187,2]
[402851256,1768936241918,-151.0,0.000187,2]
[402851257,1768936241927,-151.0,0.000187,2]
[402851258,1768936241936,-1127.37,0.000187,3]
[402851259,1768936241946,-500.0,0.00018762,2]
[402851260,1768936241955,-2739.3633812,0.00018764,2]
[402851261,1768936241964,-305.2501772,0.00018849,2]
[402851262,1768936241973,-305.2501772,0.00018849,2]
[402851263,1768936241982,-153.0,0.00018849,2]
[402851264,1768936241991,-305.2501772,0.00018849,2]
[402851265,1768936242000,-303.10001603,0.000189,2]
[402851266,1768936242010,-7922.51802292,0.000189,2]
[402851267,1768936242019,-1213.4542421,0.00018972,2]
[402851268,1768936242030,-12939.17837124,0.00018972,2]
[402851300,1768936246443,-151.0,0.00014247,2]
[402851301,1768936246454,-151.0,0.00014247,2]
[402851302,1768936246465,-88.44511936,0.00015536,2]
[402851303,1768936246478,-62.55488064,0.00015536,2]
[402851304,1768936246490,-151.0,0.00015536,2]
[402851305,1768936246500,-151.0,0.000182,2]
[402851306,1768936246510,-151.0,0.000182,2]
[402851307,1768936246521,-151.0,0.000186,2]
[402851308,1768936246532,-634.66654677,0.00018972,2]
[402851309,1768936246543,-946.39007041,0.00018972,2]
[402851312,1768936392763,500.0,0.00027397,120]
[402851313,1768936392872,538.41,0.00027397,120]
[402851314,1768936392997,500.0,0.00027397,120]
[402851315,1768936393245,500.0,0.00027397,120]
[402851316,1768936393482,500.0,0.00027397,120]
[402851317,1768936393718,457.99405044,0.00027397,120]
[402851319,1768936576783,500.0,0.00027397,120]
[402851320,1768936577031,500.0,0.00027397,120]
[402851321,1768936577274,500.0,0.00027397,120]
[402851322,1768936577531,500.0,0.00027397,120]
[402851323,1768936578076,500.0,0.00027397,120]
[402851324,1768936578506,500.0,0.00027397,120]
[402851325,1768936578631,534.26411861,0.00027397,120]
[402851326,1768936582191,500.0,0.00027397,120]
[402851327,1768936583213,10000.0,0.00027397,120]
[402851329,1768936607638,500.0,0.00027397,120]
[402851330,1768936607870,500.0,0.00027397,120]
[402851331,1768936608104,499.99999997,0.00027397,120]
[402851386,1768936826306,500.0,0.00027397,120]
[402851387,1768936826513,500.0,0.00027397,120]
[402851401,1768937212656,500.0,0.00027397,120]
[402851402,1768937212872,500.0,0.00027397,120]
[402851403,1768937213113,500.0,0.00027397,120]
[402851404,1768937213361,571.54204279,0.00027397,120]
[402851447,1768937432430,-945.46857982,0.00013138,10]
[402851454,1768937432486,-492.434724,0.00013138,10]
[402851727,1768937438514,-3562.09669618,0.00013138,10]
[402851729,1768937438526,-661.0,0.0001327,2]
[402851731,1768937438537,-300.0,0.00013271,2]
[402851733,1768937438549,-300.0,0.00013271,2]
[402851736,1768937438563,-300.0,0.00013271,2]
[402851738,1768937438575,-300.0,0.00013271,2]
[402851740,1768937438586,-608.0,0.00013271,2]
[402851742,1768937438598,-500.0,0.00013273,2]
[402851744,1768937438610,-500.0,0.00013273,2]
[402851746,1768937438622,-164.58073526,0.00013273,2]
[402851748,1768937438633,-504.72048866,0.00013273,2]
[402851751,1768937438644,-500.0,0.00013273,2]
[402851753,1768937438655,-500.0,0.00013698,2]
[402851755,1768937438665,-500.0,0.00013698,2]
[402851757,1768937438677,-500.0,0.00013698,2]
[402851759,1768937438688,-500.0,0.00013698,2]
[402851761,1768937438700,-500.0,0.00013699,2]
[402851764,1768937438711,-500.0,0.00013699,2]
[402851766,1768937438723,-500.0,0.00013699,2]
[402851768,1768937438735,-500.0,0.00013699,2]
[402851770,1768937438747,-1000.0,0.00013821,2]
[402851772,1768937438758,-1000.0,0.00013821,2]
[402851774,1768937438769,-570.06,0.00014246,2]